Service area,Service sub division,TVBC Service,Expense type,Detailed expense type,TVBC account code,Date Paid,Transaction Reference, Nett Value ,Supplier Name
Cultural & Related,Tourism,Planning Policy & Economic Development ,Premises related Expenditure,Water Services,Water And Sewerage Charges,23/09/2021,352135,-3434.35,Castle Water Limited
Cultural & Related,Tourism,Planning Policy & Economic Development ,Premises related Expenditure,Water Services,Water And Sewerage Charges,23/09/2021,352136,-1503.37,Castle Water Limited
External Trading Accounts,Business Parks,Premises & Asset Management,Supplies & Services,Communications & Computing,Computer Hardware,30/09/2021,350856,-682.25,Spear Electrical Limited
Central Services to the Public,Management & Support Services,Finance,Supplies & Services,"Printing, Stationery & General Office Expenses",Postage Costs,30/09/2021,352406,-679.71,Pitney Bowes Finance Ltd
Planning & Development,Community Development,Community and Leisure ,Supplies & Services,Grants & Subscriptions,Grants,16/09/2021,351922,500,Enham Trust
Cultural & Related,Open Spaces,Environmental,Supplies & Services,Miscellaneous Expenses,Vehicle insurance claims,16/09/2021,351680,500,Bodyshop24
Planning & Development,Economic Development,Planning Policy & Economic Development ,Supplies & Services,Grants & Subscriptions,Grants,16/09/2021,349955,500,Unity Arts
Central Services to the Public,Management & Support Services,Premises & Asset Management,Third Party Payments,Other Establishments,Private Contractors,09/09/2021,350871,430.95,Corrigenda Ltd
Cultural & Related,Open Spaces,Environmental,Transport Related Expenditure,Direct Transport Costs,Petrol,30/09/2021,352766,431.71,Fuel Card Services Ltd
Environmental & Regulatory,Regulatory Services,Premises & Asset Management,Premises related Expenditure,Water Services,Water And Sewerage Charges,23/09/2021,352125,520.15,Castle Water Limited
Cultural & Related,Open Spaces,Environmental,Transport Related Expenditure,Direct Transport Costs,Repair Materials,02/09/2021,350245,217.5,Steele Signs
Environmental & Regulatory,Street Cleansing (not chargeable to Highways),Environmental,Transport Related Expenditure,Direct Transport Costs,Repair Materials,02/09/2021,350245,217.5,Steele Signs
Planning & Development,Community Development,Planning Policy & Economic Development ,Supplies & Services,Grants & Subscriptions,Contributions,30/09/2021,352756,530,Hampshire County Council
Environmental & Regulatory,Street Cleansing (not chargeable to Highways),Environmental,Supplies & Services,Communications & Computing,Telephone Tracking System,30/09/2021,352116,450,Teletrac Navman (Uk) Ltd
Planning & Development,Building Control,Planning & Building,Transport Related Expenditure,Contract Hire and Operating Leases,Officer lease cars,16/09/2021,351818,541.03,Arval Uk Ltd
Central Services to the Public,Management & Support Services,HR Services,Employees,Indirect Employee Expenses,Advertising Of Vacancies,02/09/2021,350375,452,Shl Group Limited
Cultural & Related,Open Spaces,Environmental,Supplies & Services,"Equipment, Furniture & Materials",Purchase Equip + Materials,09/09/2021,349068,452.93,Tudor Environmental
Cultural & Related,Recreation & Sport,Community and Leisure ,Supplies & Services,"Equipment, Furniture & Materials",Purchase Equip + Materials,30/09/2021,350355,454,Broxap Limited (Stadia Sports )
Central Services to the Public,Management & Support Services,IT,Supplies & Services,Communications & Computing,Communication Links,02/09/2021,350372,460.53,Zen Internet Limited
Central Services to the Public,Management & Support Services,IT,Supplies & Services,Communications & Computing,Communication Links,30/09/2021,352636,460.53,Zen Internet Limited
Central Services,Corporate & Democratic Core,Corporate & Democratic,Supplies & Services,Services,Legal Fees,30/09/2021,351287,555,Radcliffe Chambers
Central Services to the Public,Management & Support Services,Premises & Asset Management,Premises related Expenditure,Energy Costs,Gas,09/09/2021,348985,466.25,Totalenergies Gas & Power Ltd
Environmental & Regulatory,"Cemetery, Cremation and Mortuary Services",Community and Leisure ,Premises related Expenditure,Grounds Maintenance Costs,Gm - Additional Works,09/09/2021,351085,466.6,Thorverton Stone Company Ltd
Environmental & Regulatory,"Cemetery, Cremation and Mortuary Services",Community and Leisure ,Premises related Expenditure,Grounds Maintenance Costs,Gm - Additional Works,09/09/2021,351097,560.24,St Peter'S Church
Environmental & Regulatory,Waste management,Environmental,Employees,Indirect Employee Expenses,Agency Staff - Waged Posts,30/09/2021,352187,471.94,Aligra
External Trading Accounts,Property Investments,Premises & Asset Management,Premises related Expenditure,Grounds Maintenance Costs,Grounds Maintenance Contracts,02/09/2021,350874,473.19,Landmarks Sustainability Ltd
Central Services to the Public,Management & Support Services,Finance,Supplies & Services,Services,Training Courses,30/09/2021,352808,475,Solace Enterprises Ltd
Cultural & Related,Culture & Heritage,Community and Leisure ,Supplies & Services,Services,Project Consultancy - Policy,30/09/2021,352121,570,Circus Allstars
Environmental & Regulatory,Waste management,Environmental,Transport Related Expenditure,Direct Transport Costs,Repair Materials,30/09/2021,351798,475.73,Dennis Eagle Ltd
Cultural & Related,Recreation & Sport,Premises & Asset Management,Premises related Expenditure,Water Services,Water And Sewerage Charges,23/09/2021,352126,571.6,Castle Water Limited
Cultural & Related,Open Spaces,Environmental,Supplies & Services,Miscellaneous Expenses,Waste Collection,30/09/2021,351654,479.16,Collard Enviromental Ltd
Cultural & Related,Open Spaces,Environmental,Transport Related Expenditure,Direct Transport Costs,External Garages,09/09/2021,342135,192,T H White Ltd
Cultural & Related,Open Spaces,Environmental,Transport Related Expenditure,Direct Transport Costs,Repair Materials,09/09/2021,342135,295.64,T H White Ltd
Cultural & Related,Open Spaces,Community and Leisure ,Premises related Expenditure,Grounds Maintenance Costs,Gm - Additional Works,09/09/2021,350912,488,Personal Data - Data Protection Act 1998
Planning & Development,Building Control,Planning & Building,Supplies & Services,Services,Professional Fees,30/09/2021,348117,495,Spear Electrical Limited
Cultural & Related,Culture & Heritage,Community and Leisure ,Supplies & Services,Miscellaneous Expenses,Promotions / Special Events,02/09/2021,350855,595,John Dollin Printing Services Ltd
Planning & Development,Community Development,Community and Leisure ,Supplies & Services,Grants & Subscriptions,Grants,09/09/2021,351375,600,Halterworth School Association
"Highways, Roads & Transport",Parking Services,Plan Pol & Transport,Supplies & Services,Services,Professional Fees,16/09/2021,351814,0,Marston (Holdings) Ltd
Environmental & Regulatory,Waste management,Environmental,Supplies & Services,"Equipment, Furniture & Materials",Purchase Equip + Materials,23/09/2021,352305,502.93,Frontier Plastics Limited
Central Services to the Public,Management & Support Services,Premises & Asset Management,Transport Related Expenditure,Direct Transport Costs,Petrol,02/09/2021,350024,5.9,Fuel Card Services Ltd
Cultural & Related,Open Spaces,Environmental,Transport Related Expenditure,Direct Transport Costs,Petrol,02/09/2021,350024,497.66,Fuel Card Services Ltd
Environmental & Regulatory,Waste management,Environmental,Employees,Indirect Employee Expenses,Agency Staff - Waged Posts,09/09/2021,349839,515.04,Simple Recruitment Services Ltd
Planning & Development,Building Control,Planning & Building,Employees,Indirect Employee Expenses,Advertising Of Vacancies,30/09/2021,352629,520,Redactive Events Ltd
Planning & Development,Development Control,Planning & Building,Supplies & Services,Services,Project Consultancy - Policy,02/09/2021,350417,522,Hampshire County Council
Central Services to the Public,Management & Support Services,Environmental,Transport Related Expenditure,Direct Transport Costs,Repair Materials,02/09/2021,350530,524.7,Dennis Eagle Ltd
Central Services to the Public,Management & Support Services,Estates and Economic Development ,Third Party Payments,Private contractors,Main Contractor Costs,16/09/2021,351281,525.5,Bird Control Systems Ltd
Environmental & Regulatory,Waste management,Environmental,Supplies & Services,"Equipment, Furniture & Materials",Purchase Equip + Materials,23/09/2021,352306,525.57,Frontier Plastics Limited
Environmental & Regulatory,Waste management,Environmental,Transport Related Expenditure,Direct Transport Costs,Repair Materials,02/09/2021,350394,533.58,Terberg Matec Uk Limited
Cultural & Related,Open Spaces,Environmental,Transport Related Expenditure,Direct Transport Costs,Repair Materials,09/09/2021,343901,548.31,T H White Ltd
Central Services to the Public,Management & Support Services,Premises & Asset Management,Employees,Indirect Employee Expenses,Advertising Of Vacancies,30/09/2021,352312,550,Spacehouse Limited
Central Services to the Public,Management & Support Services,Premises & Asset Management,Supplies & Services,Miscellaneous Expenses,Waste Collection,02/09/2021,350880,555,Bkp Waste & Recycling Ltd
Central Services to the Public,Management & Support Services,HR Services,Employees,Indirect Employee Expenses,Advertising Of Vacancies,09/09/2021,350376,565,Shl Group Limited
Central Services to the Public,Management & Support Services,Premises & Asset Management,Third Party Payments,Other Establishments,Private Contractors,23/09/2021,352110,565.48,Tsg Building Services Plc
"Highways, Roads & Transport",Public Transport,Plan Pol & Transport,Third Party Payments,Transport Operators in Respect of Concessionary Fares,Voluntary Orgs Reimbursement,09/09/2021,351374,683.5,Romsey Good Neighbours
Central Services to the Public,Management & Support Services,Finance,Supplies & Services,Services,Insurance ,23/09/2021,352421,700,Gosport Borough Council
Cultural & Related,Open Spaces,Environmental,Supplies & Services,"Equipment, Furniture & Materials",Purchase Equip + Materials,30/09/2021,351329,590.4,Tudor Environmental
"Highways, Roads & Transport",Highways and roads - maintenance,Plan Pol & Transport,Premises related Expenditure,Repairs Alterations & Maintenance of Buildings,Highways Repairs,30/09/2021,352329,594,Purbeck Civil Engineering Limited
Cultural & Related,Open Spaces,Environmental,Supplies & Services,Miscellaneous Expenses,Waste Collection,30/09/2021,350778,607.8,Collard Enviromental Ltd
Cultural & Related,Culture & Heritage,Premises & Asset Management,Supplies & Services,Miscellaneous Expenses,Waste Collection,16/09/2021,351703,178.87,Suez Recycling And Recovery Uk Ltd
Central Services to the Public,Management & Support Services,Premises & Asset Management,Supplies & Services,Miscellaneous Expenses,Waste Collection,16/09/2021,351703,429.38,Suez Recycling And Recovery Uk Ltd
Environmental & Regulatory,Regulatory Services,Housing and Environmental Health ,Employees,Indirect Employee Expenses,Agency Staff - Waged Posts,30/09/2021,352169,608.85,The Oyster Partnership Ltd
Planning & Development,Economic Development,Planning Policy & Economic Development ,Supplies & Services,Grants & Subscriptions,Grants,30/09/2021,352900,750,Staffords Auto Services
Planning & Development,Economic Development,Planning Policy & Economic Development ,Supplies & Services,Grants & Subscriptions,Grants,22/09/2021,352335,750,Personal Data - Data Protection Act 1998
Planning & Development,Economic Development,Planning Policy & Economic Development ,Supplies & Services,Grants & Subscriptions,Grants,22/09/2021,352336,750,Personal Data - Data Protection Act 1998
Planning & Development,Economic Development,Planning Policy & Economic Development ,Supplies & Services,Grants & Subscriptions,Grants,29/09/2021,352769,750,G.E.T Driving School
Cultural & Related,Culture & Heritage,Community and Leisure ,Supplies & Services,Services,Project Consultancy - Policy,30/09/2021,352616,750,Merry-Go-Round Storytelling
Planning & Development,Economic Development,Planning Policy & Economic Development ,Supplies & Services,Grants & Subscriptions,Grants,02/09/2021,350883,750,3 Sierra Ltd
Environmental & Regulatory,Street Cleansing (not chargeable to Highways),Environmental,Supplies & Services,"Equipment, Furniture & Materials",Purchase Equip + Materials,30/09/2021,350914,639,Sweeperhire
Environmental & Regulatory,Waste management,Environmental,Employees,Indirect Employee Expenses,Agency Staff - Waged Posts,02/09/2021,350779,640,Golden Orb Solutions
Cultural & Related,Open Spaces,Environmental,Transport Related Expenditure,Direct Transport Costs,External Garages,09/09/2021,346473,284.7,T H White Ltd
Cultural & Related,Open Spaces,Environmental,Transport Related Expenditure,Direct Transport Costs,Repair Materials,09/09/2021,346473,360.99,T H White Ltd
Environmental & Regulatory,Waste management,Environmental,Employees,Indirect Employee Expenses,Agency Staff - Waged Posts,09/09/2021,350041,647.88,24-7 Staffing
Central Services to the Public,Management & Support Services,Premises & Asset Management,Supplies & Services,Services,Professional Fees,09/09/2021,351292,650,Milestone Transport Planning Ltd
Cultural & Related,Culture & Heritage,Premises & Asset Management,Supplies & Services,Services,Professional Fees,09/09/2021,350866,650,Williams Llp
Cultural & Related,Open Spaces,Community and Leisure ,Supplies & Services,Communications & Computing,Telephone Tracking System,16/09/2021,351653,50,Teletrac Navman (Uk) Ltd
Cultural & Related,Open Spaces,Community and Leisure ,Supplies & Services,"Equipment, Furniture & Materials",Purchase Equip + Materials,16/09/2021,351318,650,Evergreen Rabbit Control
Cultural & Related,Open Spaces,Environmental,Supplies & Services,Communications & Computing,Telephone Tracking System,16/09/2021,351653,50,Teletrac Navman (Uk) Ltd
Environmental & Regulatory,Street Cleansing (not chargeable to Highways),Environmental,Supplies & Services,Communications & Computing,Telephone Tracking System,16/09/2021,351653,550,Teletrac Navman (Uk) Ltd
Central Services to the Public,Management & Support Services,Finance,Supplies & Services,"Printing, Stationery & General Office Expenses",Postage Costs,09/09/2021,350707,651.87,Whistl Uk Ltd
Cultural & Related,Culture & Heritage,Community and Leisure ,Supplies & Services,"Equipment, Furniture & Materials",Purchase Equip + Materials,16/09/2021,351055,655,Wake'S Decorating Ltd
Environmental & Regulatory,Waste management,Environmental,Transport Related Expenditure,Direct Transport Costs,Repair Materials,16/09/2021,351330,660.51,Dennis Eagle Ltd
Environmental & Regulatory,Waste management,Environmental,Employees,Indirect Employee Expenses,Agency Staff - Waged Posts,16/09/2021,351647,664,Golden Orb Solutions
Central Services to the Public,Management & Support Services,Environmental,Employees,Indirect Employee Expenses,Temporary Staff,09/09/2021,350263,800,Parrish Transport Solutions Ltd
Central Services to the Public,Management & Support Services,Environmental,Employees,Indirect Employee Expenses,Temporary Staff,09/09/2021,350891,800,Parrish Transport Solutions Ltd
Central Services to the Public,Management & Support Services,Environmental,Employees,Indirect Employee Expenses,Temporary Staff,16/09/2021,351065,800,Parrish Transport Solutions Ltd
Central Services to the Public,Management & Support Services,Environmental,Employees,Indirect Employee Expenses,Temporary Staff,16/09/2021,351635,800,Parrish Transport Solutions Ltd
Central Services to the Public,Management & Support Services,Environmental,Employees,Indirect Employee Expenses,Temporary Staff,23/09/2021,352159,800,Parrish Transport Solutions Ltd
Cultural & Related,Open Spaces,Environmental,Supplies & Services,Communications & Computing,Mobile Telephone Charges,30/09/2021,352398,206.98,Vodafone Limited
Environmental & Regulatory,Waste & Recycling Management,Environmental,Supplies & Services,Communications & Computing,Mobile Telephone Charges,30/09/2021,352398,64.79,Vodafone Limited
Environmental & Regulatory,Street Cleansing (not chargeable to Highways),Environmental,Supplies & Services,Communications & Computing,Mobile Telephone Charges,30/09/2021,352398,143.5,Vodafone Limited
Environmental & Regulatory,Waste management,Environmental,Supplies & Services,Communications & Computing,Mobile Telephone Charges,30/09/2021,352398,178.5,Vodafone Limited
Central Services to the Public,Management & Support Services,Environmental,Supplies & Services,Communications & Computing,Mobile Telephone Charges,30/09/2021,352398,49,Vodafone Limited
Central Services to the Public,Management & Support Services,Environmental,Supplies & Services,Communications & Computing,Mobile Telephone Charges,30/09/2021,352398,31.5,Vodafone Limited
Environmental & Regulatory,Regulatory Services,Housing and Environmental Health ,Employees,Indirect Employee Expenses,Agency Staff - Waged Posts,02/09/2021,350226,677.7,The Oyster Partnership Ltd
"Highways, Roads & Transport",Parking Services,Plan Pol & Transport,Supplies & Services,"Equipment, Furniture & Materials",Purchase Equip + Materials,09/09/2021,351050,678.56,Hampshire County Council
Environmental & Regulatory,Waste management,Environmental,Transport Related Expenditure,Direct Transport Costs,Repair Materials,23/09/2021,351666,679.49,Terberg Matec Uk Limited
Environmental & Regulatory,Waste management,Environmental,Supplies & Services,Grants & Subscriptions,Subscriptions,30/09/2021,351632,822.85,Hcc Processing Centre
Central Services to the Public,Elections,Legal & Democratic,Supplies & Services,"Printing, Stationery & General Office Expenses",Postage Costs,09/09/2021,351268,687.6,Financial Data Management Plc
Planning & Development,Community Development,Community and Leisure ,Supplies & Services,Grants & Subscriptions,Grants,02/09/2021,350885,833,Ampfield Parish Council
Cultural & Related,Culture & Heritage,Community and Leisure ,Supplies & Services,Miscellaneous Expenses,Promotions / Special Events,30/09/2021,352814,695,Hampshire Media Limited
Cultural & Related,Open Spaces,Environmental,Supplies & Services,Services,Training Courses,02/09/2021,350362,715,By-Pass Driver Training
Cultural & Related,Open Spaces,Environmental,Transport Related Expenditure,Direct Transport Costs,External Garages,09/09/2021,342264,256,T H White Ltd
Cultural & Related,Open Spaces,Environmental,Transport Related Expenditure,Direct Transport Costs,Repair Materials,09/09/2021,342264,448.56,T H White Ltd
Central Services to the Public,Management & Support Services,Finance,Supplies & Services,"Printing, Stationery & General Office Expenses",Postage Costs,09/09/2021,350371,729.31,Whistl Uk Ltd
Environmental & Regulatory,Regulatory Services,Housing and Environmental Health ,Employees,Indirect Employee Expenses,Agency Staff - Waged Posts,16/09/2021,351637,729.45,The Oyster Partnership Ltd
Central Services to the Public,Management & Support Services,Finance,Supplies & Services,"Printing, Stationery & General Office Expenses",Postage Costs,30/09/2021,352657,730.64,Pitney Bowes Finance Ltd
Central Services to the Public,Elections,Legal & Democratic,Supplies & Services,"Printing, Stationery & General Office Expenses",Postage Costs,23/09/2021,352170,739.86,Financial Data Management Plc
Environmental & Regulatory,Waste management,Environmental,Transport Related Expenditure,Direct Transport Costs,Tyres,16/09/2021,351648,739.86,Tructyre Ats
"Highways, Roads & Transport",Public Transport,Plan Pol & Transport,Third Party Payments,Transport Operators in Respect of Concessionary Fares,Voluntary Orgs Reimbursement,09/09/2021,351373,890,Thorngate Village Care Group
Central Services to the Public,Management & Support Services,Revenues,Supplies & Services,Miscellaneous Expenses,Medical Fees,02/09/2021,350534,19,University Hospital Soton Nhs Foundation Trst
Central Services to the Public,Management & Support Services,Premises & Asset Management,Supplies & Services,Miscellaneous Expenses,Medical Fees,02/09/2021,350534,32,University Hospital Soton Nhs Foundation Trst
Central Services to the Public,Management & Support Services,Finance,Supplies & Services,Miscellaneous Expenses,Medical Fees,02/09/2021,350534,19,University Hospital Soton Nhs Foundation Trst
Environmental & Regulatory,Regulatory Services,Housing and Environmental Health ,Supplies & Services,Miscellaneous Expenses,Medical Fees,02/09/2021,350534,201,University Hospital Soton Nhs Foundation Trst
Environmental & Regulatory,Regulatory Services,Housing and Environmental Health ,Supplies & Services,Miscellaneous Expenses,Medical Fees,02/09/2021,350534,92,University Hospital Soton Nhs Foundation Trst
Housing Services,Homelessness,Housing and Environmental Health ,Supplies & Services,Miscellaneous Expenses,Medical Fees,02/09/2021,350534,19,University Hospital Soton Nhs Foundation Trst
Environmental & Regulatory,Regulatory Services,Housing and Environmental Health ,Supplies & Services,Miscellaneous Expenses,Medical Fees,02/09/2021,350534,19,University Hospital Soton Nhs Foundation Trst
Cultural & Related,Recreation & Sport,Community and Leisure ,Supplies & Services,Miscellaneous Expenses,Medical Fees,02/09/2021,350534,19,University Hospital Soton Nhs Foundation Trst
Planning & Development,Development Control,Planning & Building,Supplies & Services,Miscellaneous Expenses,Medical Fees,02/09/2021,350534,38,University Hospital Soton Nhs Foundation Trst
Planning & Development,Building Control,Planning & Building,Supplies & Services,Miscellaneous Expenses,Medical Fees,02/09/2021,350534,51,University Hospital Soton Nhs Foundation Trst
Central Services to the Public,Local Tax Collection,Revenues,Supplies & Services,Miscellaneous Expenses,Medical Fees,02/09/2021,350534,19,University Hospital Soton Nhs Foundation Trst
Environmental & Regulatory,Waste & Recycling Management,Environmental,Supplies & Services,Miscellaneous Expenses,Medical Fees,02/09/2021,350534,19,University Hospital Soton Nhs Foundation Trst
Environmental & Regulatory,Street Cleansing (not chargeable to Highways),Environmental,Supplies & Services,Miscellaneous Expenses,Medical Fees,02/09/2021,350534,38,University Hospital Soton Nhs Foundation Trst
Environmental & Regulatory,Waste management,Environmental,Supplies & Services,Miscellaneous Expenses,Medical Fees,02/09/2021,350534,209,University Hospital Soton Nhs Foundation Trst
Central Services to the Public,Management & Support Services,Environmental,Supplies & Services,Miscellaneous Expenses,Medical Fees,02/09/2021,350534,19,University Hospital Soton Nhs Foundation Trst
Central Services to the Public,Management & Support Services,Environmental,Supplies & Services,Miscellaneous Expenses,Medical Fees,02/09/2021,350534,19,University Hospital Soton Nhs Foundation Trst
Cultural & Related,Culture & Heritage,Community and Leisure ,Supplies & Services,"Equipment, Furniture & Materials",Purchase Equip + Materials,02/09/2021,350230,900,The Last Baguette
Cultural & Related,Culture & Heritage,Community and Leisure ,Supplies & Services,Services,Project Consultancy - Policy,16/09/2021,350419,760,Fool'S Paradise Ltd
Planning & Development,Planning Policy,Plan Pol & Transport,Supplies & Services,Grants & Subscriptions,Grants,16/09/2021,351316,916.64,Hampshire County Council
Central Services to the Public,Management & Support Services,Premises & Asset Management,Supplies & Services,Communications & Computing,Telephone Tracking System,09/09/2021,350706,48,Teletrac Navman (Uk) Ltd
Environmental & Regulatory,Regulatory Services,Housing and Environmental Health ,Supplies & Services,Communications & Computing,Telephone Tracking System,09/09/2021,350706,6,Teletrac Navman (Uk) Ltd
Environmental & Regulatory,Regulatory Services,Housing and Environmental Health ,Supplies & Services,Communications & Computing,Telephone Tracking System,09/09/2021,350706,12,Teletrac Navman (Uk) Ltd
Cultural & Related,Open Spaces,Community and Leisure ,Supplies & Services,Communications & Computing,Telephone Tracking System,09/09/2021,350706,6,Teletrac Navman (Uk) Ltd
Cultural & Related,Open Spaces,Community and Leisure ,Supplies & Services,Communications & Computing,Telephone Tracking System,09/09/2021,350706,6,Teletrac Navman (Uk) Ltd
"Highways, Roads & Transport",Parking Services,Plan Pol & Transport,Supplies & Services,Communications & Computing,Telephone Tracking System,09/09/2021,350706,12,Teletrac Navman (Uk) Ltd
Cultural & Related,Open Spaces,Environmental,Supplies & Services,Communications & Computing,Telephone Tracking System,09/09/2021,350706,299.99,Teletrac Navman (Uk) Ltd
Environmental & Regulatory,Waste & Recycling Management,Environmental,Supplies & Services,Communications & Computing,Telephone Tracking System,09/09/2021,350706,36,Teletrac Navman (Uk) Ltd
Environmental & Regulatory,Street Cleansing (not chargeable to Highways),Environmental,Supplies & Services,Communications & Computing,Telephone Tracking System,09/09/2021,350706,174.7,Teletrac Navman (Uk) Ltd
Environmental & Regulatory,Waste management,Environmental,Supplies & Services,Communications & Computing,Telephone Tracking System,09/09/2021,350706,136.6,Teletrac Navman (Uk) Ltd
Environmental & Regulatory,Waste management,Environmental,Supplies & Services,Communications & Computing,Telephone Tracking System,09/09/2021,350706,12,Teletrac Navman (Uk) Ltd
Central Services to the Public,Management & Support Services,Environmental,Supplies & Services,Communications & Computing,Telephone Tracking System,09/09/2021,350706,18,Teletrac Navman (Uk) Ltd
Planning & Development,Development Control,Planning & Building,Third Party Payments,Commuted Sum,s106 Developer contributions,09/09/2021,351371,928.51,Ampfield Parish Council
Central Services to the Public,Local Tax Collection,Revenues,Supplies & Services,Services,Professional Fees,16/09/2021,350782,0,Ross & Roberts
Environmental & Regulatory,Street Cleansing (not chargeable to Highways),Environmental,Supplies & Services,"Equipment, Furniture & Materials",Purchase Tools,30/09/2021,351638,786.2,Imperial Polythene Products Ltd
Environmental & Regulatory,Waste management,Environmental,Employees,Indirect Employee Expenses,Agency Staff - Waged Posts,30/09/2021,351285,569.28,24-7 Staffing
Environmental & Regulatory,Waste management,Environmental,Employees,Indirect Employee Expenses,Agency Staff - Waged Posts,30/09/2021,351285,217.09,24-7 Staffing
External Trading Accounts,Business Parks,Premises & Asset Management,Supplies & Services,"Printing, Stationery & General Office Expenses",Postage Costs,30/09/2021,352903,787,Royal Mail Group Ltd
Environmental & Regulatory,Waste management,Environmental,Employees,Indirect Employee Expenses,Agency Staff - Waged Posts,09/09/2021,351043,790.84,24-7 Staffing
Environmental & Regulatory,Waste & Recycling Management,Environmental,Supplies & Services,Miscellaneous Expenses,Recycling Campaign,16/09/2021,350683,802.7,Dura-Id Solutions Ltd
Environmental & Regulatory,Waste management,Environmental,Employees,Indirect Employee Expenses,Agency Staff - Waged Posts,16/09/2021,351048,133.13,24-7 Staffing
Environmental & Regulatory,Waste management,Environmental,Employees,Indirect Employee Expenses,Agency Staff - Waged Posts,16/09/2021,351048,682.29,24-7 Staffing
Planning & Development,Building Control,Planning & Building,Employees,Indirect Employee Expenses,Agency Staff - Waged Posts,16/09/2021,351258,826.01,Hays Specialist Recruitment
Cultural & Related,Open Spaces,Community and Leisure ,Third Party Payments,Private contractors,Main Contractor Costs,30/09/2021,350869,829.2,Barker & Geary Ltd 
Environmental & Regulatory,Regulatory Services,Housing and Environmental Health ,Employees,Indirect Employee Expenses,Agency Staff - Waged Posts,02/09/2021,350691,832.5,The Oyster Partnership Ltd
Cultural & Related,Culture & Heritage,Community and Leisure ,Supplies & Services,Services,Professional Fees,16/09/2021,351069,1000,Point Line Plane Glassware
External Trading Accounts,Business Parks,Premises & Asset Management,Supplies & Services,Miscellaneous Expenses,Waste Collection,09/09/2021,351320,845.89,Basingstoke Skip Hire & Sthrn Waste Mgt Ltd
Central Services to the Public,Management & Support Services,Housing and Environmental Health ,Supplies & Services,Miscellaneous Expenses,Other Miscellaneous Costs,30/09/2021,352399,867.37,Community Action Hampshire
Central Services to the Public,Management & Support Services,Environmental,Transport Related Expenditure,Direct Transport Costs,Red Derv,09/09/2021,350922,975.63,Wp Group Limited
Central Services to the Public,Management & Support Services,Premises & Asset Management,Supplies & Services,"Equipment, Furniture & Materials",Equipment Hire,09/09/2021,351275,862.5,Crown Water & Coffee
Central Services to the Public,Management & Support Services,IT,Supplies & Services,Communications & Computing,Land Line Telephone Charges,16/09/2021,351334,870.58,Gamma
Cultural & Related,Open Spaces,Environmental,Supplies & Services,"Equipment, Furniture & Materials",Purchase Equip + Materials,30/09/2021,350708,875.18,Tudor Environmental
Cultural & Related,Open Spaces,Environmental,Supplies & Services,"Equipment, Furniture & Materials",Purchase Equip + Materials,30/09/2021,349530,951.3,Rigby Taylor Ltd
Central Services to the Public,Management & Support Services,Premises & Asset Management,Premises related Expenditure,Repairs Alterations & Maintenance of Buildings,Planned Maintenance - Non Est,30/09/2021,352879,895,Saxon Safety Ltd
Environmental & Regulatory,Street Cleansing (not chargeable to Highways),Environmental,Supplies & Services,"Equipment, Furniture & Materials",Maintenance Equip + Materials,30/09/2021,350458,908.9,Imperial Polythene Products Ltd
Central Services to the Public,Elections,Legal & Democratic,Supplies & Services,"Printing, Stationery & General Office Expenses",Written Media,09/09/2021,351269,1126,Thomson Reuters
Environmental & Regulatory,Waste & Recycling Management,Environmental,Supplies & Services,"Equipment, Furniture & Materials",Purchase Equip + Materials,23/09/2021,352307,946.33,Frontier Plastics Limited
Environmental & Regulatory,Regulatory Services,Housing and Environmental Health ,Supplies & Services,Grants and subscriptions,Capital Grants,09/09/2021,351378,1136,Andover Glass Works Ltd
"Highways, Roads & Transport",Parking Services,Plan Pol & Transport,Supplies & Services,Services,Professional Fees,09/09/2021,350845,958.57,Advam (Uk) Limited
Planning & Development,Development Control,Planning & Building,Employees,Indirect Employee Expenses,Temporary Staff,30/09/2021,351901,960,G2 Recruitment Solutions
Planning & Development,Development Control,Planning & Building,Employees,Indirect Employee Expenses,Temporary Staff,30/09/2021,351902,960,G2 Recruitment Solutions
Cultural & Related,Open Spaces,Environmental,Supplies & Services,"Equipment, Furniture & Materials",Purchase Equip + Materials,02/09/2021,350698,966.2,Nomix Enviro
Environmental & Regulatory,Waste management,Environmental,Transport Related Expenditure,Direct Transport Costs,Tyres,16/09/2021,351054,978.69,Tructyre Ats
Central Services to the Public,Management & Support Services,Premises & Asset Management,Third Party Payments,Other Establishments,Private Contractors,23/09/2021,352108,1000,Corrigenda Ltd
Cultural & Related,Open Spaces,Environmental,Transport Related Expenditure,Direct Transport Costs,Tyres,30/09/2021,352181,98.78,Tructyre Ats
Environmental & Regulatory,Waste & Recycling Management,Environmental,Transport Related Expenditure,Direct Transport Costs,Tyres,30/09/2021,352181,394.43,Tructyre Ats
Environmental & Regulatory,Street Cleansing (not chargeable to Highways),Environmental,Transport Related Expenditure,Direct Transport Costs,Tyres,30/09/2021,352181,124.37,Tructyre Ats
Environmental & Regulatory,Waste management,Environmental,Transport Related Expenditure,Direct Transport Costs,Tyres,30/09/2021,352181,351.56,Tructyre Ats
Environmental & Regulatory,Waste management,Environmental,Transport Related Expenditure,Direct Transport Costs,Tyres,30/09/2021,352181,62.62,Tructyre Ats
Environmental & Regulatory,Regulatory Services,Housing and Environmental Health ,Employees,Indirect Employee Expenses,Agency Staff - Waged Posts,30/09/2021,352638,1057.5,The Oyster Partnership Ltd
Central Services to the Public,Management & Support Services,Premises & Asset Management,Premises related Expenditure,Cleaning and domestic supplies,Window Cleaning,09/09/2021,351078,1082,Allclean Windows Limited
Central Services to the Public,Management & Support Services,Premises & Asset Management,Transport Related Expenditure,Direct Transport Costs,Repair Materials,02/09/2021,350244,11.6,Md Services (Andover) Ltd
Environmental & Regulatory,Regulatory Services,Housing and Environmental Health ,Transport Related Expenditure,Direct Transport Costs,Repair Materials,02/09/2021,350244,4.64,Md Services (Andover) Ltd
Environmental & Regulatory,Regulatory Services,Housing and Environmental Health ,Transport Related Expenditure,Direct Transport Costs,Repair Materials,02/09/2021,350244,4.64,Md Services (Andover) Ltd
"Highways, Roads & Transport",Parking Services,Plan Pol & Transport,Transport Related Expenditure,Direct Transport Costs,Repair Materials,02/09/2021,350244,4.64,Md Services (Andover) Ltd
Cultural & Related,Open Spaces,Environmental,Transport Related Expenditure,Direct Transport Costs,Repair Materials,02/09/2021,350244,113.57,Md Services (Andover) Ltd
Environmental & Regulatory,Street Cleansing (not chargeable to Highways),Environmental,Transport Related Expenditure,Direct Transport Costs,Repair Materials,02/09/2021,350244,58,Md Services (Andover) Ltd
Environmental & Regulatory,Waste management,Environmental,Transport Related Expenditure,Direct Transport Costs,Repair Materials,02/09/2021,350244,39.44,Md Services (Andover) Ltd
Environmental & Regulatory,Waste management,Environmental,Transport Related Expenditure,Direct Transport Costs,Repair Materials,02/09/2021,350244,6.96,Md Services (Andover) Ltd
Central Services to the Public,Management & Support Services,Environmental,Transport Related Expenditure,Direct Transport Costs,Workshop Consumables,02/09/2021,350244,606.31,Md Services (Andover) Ltd
Central Services to the Public,Management & Support Services,Environmental,Transport Related Expenditure,Direct Transport Costs,Repair Materials,02/09/2021,350244,83.32,Md Services (Andover) Ltd
Central Services to the Public,Management & Support Services,Environmental,Supplies & Services,"Equipment, Furniture & Materials",Purchase Tools,02/09/2021,350244,189,Md Services (Andover) Ltd
Central Services to the Public,Management & Support Services,Environmental,Transport Related Expenditure,Direct Transport Costs,Repair Materials,02/09/2021,350244,6.96,Md Services (Andover) Ltd
Cultural & Related,Culture & Heritage,Community and Leisure ,Premises related Expenditure,Energy Costs,Electricity,23/09/2021,352452,874.39,Sparsholt College Hampshire
Cultural & Related,Culture & Heritage,Community and Leisure ,Premises related Expenditure,Energy Costs,Gas,23/09/2021,352452,44.54,Sparsholt College Hampshire
Cultural & Related,Culture & Heritage,Community and Leisure ,Premises related Expenditure,Water Services,Water And Sewerage Charges,23/09/2021,352452,254.34,Sparsholt College Hampshire
Environmental & Regulatory,Waste management,Environmental,Employees,Indirect Employee Expenses,Agency Staff - Waged Posts,09/09/2021,350421,1180.38,24-7 Staffing
Planning & Development,Building Control,Planning & Building,Employees,Indirect Employee Expenses,Agency Staff - Waged Posts,02/09/2021,349537,1191.75,Hays Specialist Recruitment
Planning & Development,Development Control,Planning & Building,Employees,Indirect Employee Expenses,Temporary Staff,16/09/2021,350536,1200,G2 Recruitment Solutions
Central Services to the Public,Management & Support Services,Premises & Asset Management,Supplies & Services,Services,Professional Fees,16/09/2021,349341,1202.5,The Genesis Design Studio Ltd
Central Services to the Public,Management & Support Services,IT,Supplies & Services,Communications & Computing,Software Maintenance,30/09/2021,352631,1233.5,Phoenix Software Ltd
Planning & Development,Economic Development,Planning Policy & Economic Development ,Supplies & Services,Services,Training Courses,23/09/2021,352317,1500,Humphrey & Crockett Ltd
Planning & Development,Building Control,Planning & Building,Employees,Indirect Employee Expenses,Agency Staff - Waged Posts,30/09/2021,352313,1265.13,Hays Specialist Recruitment
Planning & Development,Building Control,Planning & Building,Employees,Indirect Employee Expenses,Agency Staff - Waged Posts,02/09/2021,348861,1269.18,Hays Specialist Recruitment
Planning & Development,Building Control,Planning & Building,Employees,Indirect Employee Expenses,Agency Staff - Waged Posts,16/09/2021,350786,1276.88,Hays Specialist Recruitment
Central Services to the Public,Elections,Legal & Democratic,Supplies & Services,"Printing, Stationery & General Office Expenses",Written Media,09/09/2021,351267,1539,Wildy & Sons Ltd
External Trading Accounts,Business Parks,Premises & Asset Management,Premises related Expenditure,Repairs Alterations & Maintenance of Buildings,Estates premises costs - AMP,02/09/2021,350878,1283,Gibson & Co Ceilings
Cultural & Related,Open Spaces,Environmental,Supplies & Services,"Equipment, Furniture & Materials",Purchase Equip + Materials,30/09/2021,352459,1318.4,Rigby Taylor Ltd
Planning & Development,Development Control,Planning & Building,Employees,Indirect Employee Expenses,Temporary Staff,16/09/2021,350916,1320,G2 Recruitment Solutions
Planning & Development,Building Control,Planning & Building,Employees,Indirect Employee Expenses,Agency Staff - Waged Posts,30/09/2021,351811,1333.64,Hays Specialist Recruitment
Cultural & Related,Open Spaces,Environmental,Supplies & Services,"Equipment, Furniture & Materials",Purchase Equip + Materials,09/09/2021,349826,1333.75,Gb Sport & Leisure Uk Ltd
Planning & Development,Planning Policy,Plan Pol & Transport,Supplies & Services,Grants & Subscriptions,Grants,30/09/2021,352178,1605.75,Hampshire County Council
Housing Services,Homelessness,Housing and Environmental Health ,Supplies & Services,Miscellaneous Expenses,Bed & Breakfast,09/09/2021,350906,1364,Centennial Property Ltd
Planning & Development,Development Control,Planning & Building,Third Party Payments,Commuted Sum,s106 Developer contributions,30/09/2021,352772,1648.55,Penton Mewsey Parish Council
Central Services to the Public,Management & Support Services,Premises & Asset Management,Third Party Payments,Other Establishments,Private Contractors,16/09/2021,351696,1392.66,Tsg Building Services Plc
Cultural & Related,Open Spaces,Community and Leisure ,Premises related Expenditure,Grounds Maintenance Costs,Gm - Additional Works,30/09/2021,352810,1400,The Arboricultural Co Ltd
Planning & Development,Development Control,Planning & Building,Employees,Indirect Employee Expenses,Temporary Staff,02/09/2021,350862,1419,Matchtech Group Uk Ltd
Central Services to the Public,Management & Support Services,Environmental,Transport Related Expenditure,Direct Transport Costs,Red Derv,09/09/2021,350902,1435.32,Wp Group Limited
Central Services to the Public,Management & Support Services,Estates and Economic Development ,Third Party Payments,Private contractors,Main Contractor Costs,09/09/2021,351064,1475,Fieldform
"Highways, Roads & Transport",Highways and roads - maintenance,Plan Pol & Transport,Premises related Expenditure,Repairs Alterations & Maintenance of Buildings,Highways Repairs,02/09/2021,350416,1486.83,Signway Supplies (Datchet Ltd)
Cultural & Related,Culture & Heritage,Community and Leisure ,Supplies & Services,"Equipment, Furniture & Materials",Purchase Equip + Materials,02/09/2021,350414,150,Sbs Epos
Cultural & Related,Culture & Heritage,Community and Leisure ,Supplies & Services,Miscellaneous Expenses,Stock Take Fees,02/09/2021,350414,1345,Sbs Epos
Central Services to the Public,Management & Support Services,HR Services,Third Party Payments,Other Local Authorities,Shared Service Contract Costs,09/09/2021,350792,1500,Mhr International Uk Ltd
Central Services to the Public,Management & Support Services,Premises & Asset Management,Third Party Payments,Other Establishments,Private Contractors,30/09/2021,352873,1500,Purbeck Civil Engineering Limited
Environmental & Regulatory,Waste management,Environmental,Transport Related Expenditure,Direct Transport Costs,Repair Materials,30/09/2021,351846,1500,Adams Morey Ltd
Central Services to the Public,Management & Support Services,HR Services,Employees,Indirect Employee Expenses,Post Entry Training,30/09/2021,352655,1500,West Midlands Employers
Central Services to the Public,Management & Support Services,HR Services,Employees,Indirect Employee Expenses,Post Entry Training,30/09/2021,352656,1500,West Midlands Employers
Environmental & Regulatory,Regulatory Services,Housing and Environmental Health ,Supplies & Services,Miscellaneous Expenses,Kennel fees,09/09/2021,351259,1490.87,Three Oak Boarding Kennels
Planning & Development,Development Control,Planning & Building,Employees,Indirect Employee Expenses,Temporary Staff,02/09/2021,350860,1505,Matchtech Group Uk Ltd
Planning & Development,Development Control,Planning & Building,Employees,Indirect Employee Expenses,Temporary Staff,02/09/2021,350861,1505,Matchtech Group Uk Ltd
Planning & Development,Planning Policy,Plan Pol & Transport,Supplies & Services,Grants & Subscriptions,Grants,16/09/2021,351317,1854,Hampshire County Council
Planning & Development,Development Control,Planning & Building,Supplies & Services,Services,Project Consultancy - Policy,23/09/2021,351290,1596.03,Landshape Ltd
Cultural & Related,Open Spaces,Environmental,Transport Related Expenditure,Direct Transport Costs,Tyres,09/09/2021,350710,1621.5,A T H Machinery Ltd
Central Services to the Public,Management & Support Services,Premises & Asset Management,Third Party Payments,Other Establishments,Private Contractors,02/09/2021,349608,1622,Flow Mech Products Ltd
External Trading Accounts,Business Parks,Premises & Asset Management,Third Party Payments,Other Establishments,Private Contractors,30/09/2021,351105,1622.89,Spear Electrical Limited
Central Services,Corporate & Democratic Core,Corporate & Democratic,Supplies & Services,"Equipment, Furniture & Materials",Purchase Equip + Materials,30/09/2021,351904,1636.6,Shaw & Sons Ltd
Planning & Development,Community Development,Community and Leisure ,Supplies & Services,Grants & Subscriptions,Grants,09/09/2021,351376,2000,Andover Youth Choir
Planning & Development,Development Control,Planning & Building,Third Party Payments,Commuted Sum,s106 Developer contributions,09/09/2021,351372,2017.47,Abbotts Ann Parish Council
Central Services,Corporate & Democratic Core,Corporate & Democratic,Supplies & Services,Services,Training Courses,09/09/2021,350863,1690,Cfps
Central Services to the Public,Management & Support Services,Finance,Supplies & Services,"Printing, Stationery & General Office Expenses",Postage Costs,30/09/2021,351659,1708.96,Whistl Uk Ltd
Environmental & Regulatory,Regulatory Services,Housing and Environmental Health ,Supplies & Services,Grants and subscriptions,Capital Grants,09/09/2021,351379,2060,Liftech Systems (Se) Ltd
External Trading Accounts,Business Parks,Premises & Asset Management,Supplies & Services,Services,Professional Fees,23/09/2021,352106,1750,Kempton Carr (Maidenhead) Limited
Central Services to the Public,Management & Support Services,Premises & Asset Management,Third Party Payments,Other Establishments,Private Contractors,02/09/2021,350870,1750,Purbeck Civil Engineering Limited
Central Services to the Public,Management & Support Services,Environmental,Transport Related Expenditure,Direct Transport Costs,Repair Materials,09/09/2021,350222,1853.46,Terberg Matec Uk Limited
Central Services to the Public,Management & Support Services,Premises & Asset Management,Third Party Payments,Other Establishments,Private Contractors,23/09/2021,352180,1894,Purbeck Civil Engineering Limited
Environmental & Regulatory,Waste management,Environmental,Supplies & Services,"Equipment, Furniture & Materials",Purchase Equip + Materials,30/09/2021,352868,1920,Craemer Uk Ltd
Cultural & Related,Recreation & Sport,Community and Leisure ,Supplies & Services,Services,Professional Fees,30/09/2021,351282,1960,Blake Morgan
Cultural & Related,Open Spaces,Community and Leisure ,Premises related Expenditure,Grounds Maintenance Costs,Gm - Additional Works,09/09/2021,350892,2000,Wsp
Environmental & Regulatory,Regulatory Services,Housing and Environmental Health ,Supplies & Services,Grants and subscriptions,Capital Grants,16/09/2021,351910,2469.32,Prism Medical Uk
External Trading Accounts,Business Parks,Premises & Asset Management,Premises related Expenditure,Repairs Alterations & Maintenance of Buildings,Estates premises costs - AMP,16/09/2021,351698,2072.22,Options Flooring Ltd
Environmental & Regulatory,Street Cleansing (not chargeable to Highways),Environmental,Transport Related Expenditure,Direct Transport Costs,Tyres,02/09/2021,350422,21.92,Tructyre Ats
Environmental & Regulatory,Waste management,Environmental,Transport Related Expenditure,Direct Transport Costs,Tyres,02/09/2021,350422,2023.51,Tructyre Ats
Environmental & Regulatory,Waste management,Environmental,Transport Related Expenditure,Direct Transport Costs,Tyres,02/09/2021,350422,31.31,Tructyre Ats
Planning & Development,Building Control,Planning & Building,Employees,Indirect Employee Expenses,Agency Staff - Waged Posts,02/09/2021,349953,2080.3,Hays Specialist Recruitment
"Highways, Roads & Transport",Parking Services,Plan Pol & Transport,Supplies & Services,"Equipment, Furniture & Materials",Purchase Equip + Materials,09/09/2021,350774,2095,Ina Parc Ltd
External Trading Accounts,Business Parks,Premises & Asset Management,Premises related Expenditure,Miscellaneous Expenses,Service Charge,09/09/2021,350217,2546.21,Test Valley Borough Council
Planning & Development,Community Development,Community and Leisure ,Supplies & Services,Grants & Subscriptions,Grants,02/09/2021,350904,2640.6,Abbotts Ann Village Shop Association
Cultural & Related,Culture & Heritage,Community and Leisure ,Supplies & Services,Miscellaneous Expenses,Promotions / Special Events,02/09/2021,350854,2664,John Dollin Printing Services Ltd
Central Services to the Public,Management & Support Services,Estates and Economic Development ,Third Party Payments,Private contractors,Main Contractor Costs,30/09/2021,352309,2285,Labosport Ltd
Central Services to the Public,Management & Support Services,HR Services,Third Party Payments,Other Local Authorities,Shared Service Contract Costs,09/09/2021,350791,2396.16,Mhr International Uk Ltd
Central Services to the Public,Management & Support Services,Revenues,Supplies & Services,Miscellaneous Expenses,Security Services,16/09/2021,351815,78.5,Jade Security Services Ltd
"Highways, Roads & Transport",Parking Services,Plan Pol & Transport,Supplies & Services,Services,Professional Fees,16/09/2021,351815,2328.12,Jade Security Services Ltd
Environmental & Regulatory,Waste management,Environmental,Transport Related Expenditure,Direct Transport Costs,Repair Materials,02/09/2021,350352,2437.49,Dennis Eagle Ltd
Environmental & Regulatory,Regulatory Services,Housing and Environmental Health ,Supplies & Services,Grants and subscriptions,Capital Grants,16/09/2021,351912,3064.59,Spc Bathrooms Ltd
Environmental & Regulatory,Regulatory Services,Housing and Environmental Health ,Supplies & Services,Grants and subscriptions,Capital Grants,16/09/2021,351913,3064.59,Spc Bathrooms Ltd
Central Services to the Public,Management & Support Services,Estates and Economic Development ,Third Party Payments,Private contractors,Main Contractor Costs,30/09/2021,352404,2560.42,Stage Electrics Group Ltd
Cultural & Related,Open Spaces,Community and Leisure ,Premises related Expenditure,Grounds Maintenance Costs,Gm - Additional Works,02/09/2021,350349,2600,Going Environmental Ltd
Cultural & Related,Open Spaces,Community and Leisure ,Premises related Expenditure,Grounds Maintenance Costs,Gm - Additional Works,02/09/2021,350350,2600,Going Environmental Ltd
Cultural & Related,Recreation & Sport,Community and Leisure ,Premises related Expenditure,Repairs Alterations & Maintenance of Buildings,Estates premises costs - AMP,30/09/2021,352754,2640,Retail Centre Ltd T/A Right Light
Cultural & Related,Recreation & Sport,Community and Leisure ,Premises related Expenditure,Grounds Maintenance Costs,Gm - Additional Works,23/09/2021,352168,2672.85,Stonbury Ltd
Cultural & Related,Open Spaces,Community and Leisure ,Employees,Indirect Employee Expenses,Temporary Staff,30/09/2021,352811,2800,The Arboricultural Co Ltd
Cultural & Related,Tourism,Planning Policy & Economic Development ,Premises related Expenditure,Water Services,Water And Sewerage Charges,23/09/2021,349378,3434.35,Castle Water Limited
Central Services to the Public,Management & Support Services,Estates and Economic Development ,Third Party Payments,Private contractors,Main Contractor Costs,23/09/2021,352114,2886.4,Ministry Of Play Ltd
Central Services to the Public,Management & Support Services,Revenues,Supplies & Services,Miscellaneous Expenses,Security Services,16/09/2021,350923,78.5,Jade Security Services Ltd
"Highways, Roads & Transport",Parking Services,Plan Pol & Transport,Supplies & Services,Services,Professional Fees,16/09/2021,350923,2818.02,Jade Security Services Ltd
Environmental & Regulatory,Waste management,Environmental,Transport Related Expenditure,Direct Transport Costs,Tyres,09/09/2021,350697,2560.21,Tructyre Ats
Environmental & Regulatory,Waste management,Environmental,Transport Related Expenditure,Direct Transport Costs,Tyres,09/09/2021,350697,437.64,Tructyre Ats
Central Services to the Public,Management & Support Services,Premises & Asset Management,Third Party Payments,Other Establishments,Private Contractors,09/09/2021,351084,3164.72,Options Flooring Ltd
Central Services to the Public,Management & Support Services,Environmental,Transport Related Expenditure,Direct Transport Costs,Diesel,23/09/2021,351836,3221.23,Wp Group Limited
Central Services to the Public,Management & Support Services,Estates and Economic Development ,Third Party Payments,Private contractors,Main Contractor Costs,09/09/2021,350846,3275.8,Ministry Of Play Ltd
Central Services to the Public,Management & Support Services,Estates and Economic Development ,Third Party Payments,Private contractors,Main Contractor Costs,30/09/2021,352334,3282,Ministry Of Play Ltd
Environmental & Regulatory,Regulatory Services,Housing and Environmental Health ,Supplies & Services,Grants and subscriptions,Capital Grants,23/09/2021,352477,3990,Liftech Systems (Se) Ltd
Planning & Development,Development Control,Planning & Building,Employees,Indirect Employee Expenses,Post Entry Training,30/09/2021,352639,4000,University Of West Of England
Cultural & Related,Open Spaces,Community and Leisure ,Premises related Expenditure,Grounds Maintenance Costs,Non Contract Tree Works,23/09/2021,351651,1622.37,Gristwood & Toms Ltd
Cultural & Related,Open Spaces,Community and Leisure ,Premises related Expenditure,Repairs Alterations & Maintenance of Buildings,Estates premises costs - AMP,23/09/2021,351651,1714.11,Gristwood & Toms Ltd
Central Services to the Public,Management & Support Services,Environmental,Transport Related Expenditure,Direct Transport Costs,Diesel,02/09/2021,350469,3338.14,Wp Group Limited
Cultural & Related,Open Spaces,Community and Leisure ,Premises related Expenditure,Grounds Maintenance Costs,Gm - Additional Works,23/09/2021,351691,3420,Strettons Spreading Svcs Ltd
Environmental & Regulatory,Waste & Recycling Management,Environmental,Employees,Indirect Employee Expenses,Agency Staff - Waged Posts,30/09/2021,351843,298.8,24-7 Staffing
Environmental & Regulatory,Waste management,Environmental,Employees,Indirect Employee Expenses,Agency Staff - Waged Posts,30/09/2021,351843,2347.29,24-7 Staffing
Environmental & Regulatory,Waste management,Environmental,Employees,Indirect Employee Expenses,Agency Staff - Waged Posts,30/09/2021,351843,810.08,24-7 Staffing
Central Services to the Public,Management & Support Services,Premises & Asset Management,Third Party Payments,Other Establishments,Private Contractors,02/09/2021,350875,3500,Protec Roofing Southern Ltd
Central Services to the Public,Management & Support Services,Environmental,Employees,Indirect Employee Expenses,Advertising Of Vacancies,02/09/2021,350796,3500,Hemming Group Limited
External Trading Accounts,Business Parks,Premises & Asset Management,Supplies & Services,"Equipment, Furniture & Materials",Equipment Hire,23/09/2021,351839,388.17,Woosh Washrooms
Cultural & Related,Tourism,Planning Policy & Economic Development ,Supplies & Services,"Equipment, Furniture & Materials",Equipment Hire,23/09/2021,351839,36.23,Woosh Washrooms
Cultural & Related,Culture & Heritage,Premises & Asset Management,Supplies & Services,"Equipment, Furniture & Materials",Equipment Hire,23/09/2021,351839,144.92,Woosh Washrooms
Central Services to the Public,Management & Support Services,Premises & Asset Management,Supplies & Services,"Equipment, Furniture & Materials",Equipment Hire,23/09/2021,351839,2753.33,Woosh Washrooms
Central Services to the Public,Management & Support Services,Premises & Asset Management,Supplies & Services,"Equipment, Furniture & Materials",Equipment Hire,23/09/2021,351839,108.69,Woosh Washrooms
Central Services to the Public,Management & Support Services,Premises & Asset Management,Supplies & Services,"Equipment, Furniture & Materials",Equipment Hire,23/09/2021,351839,36.23,Woosh Washrooms
Cultural & Related,Recreation & Sport,Community and Leisure ,Supplies & Services,"Equipment, Furniture & Materials",Equipment Hire,23/09/2021,351839,144.92,Woosh Washrooms
Central Services to the Public,Management & Support Services,IT,Supplies & Services,Communications & Computing,Hardware Maintenance,30/09/2021,352400,3621.27,Kohler Uninterruptible Power Ltd
Central Services to the Public,Management & Support Services,Environmental,Transport Related Expenditure,Direct Transport Costs,Diesel,09/09/2021,350919,3626.16,Wp Group Limited
Cultural & Related,Recreation & Sport,Community and Leisure ,Premises related Expenditure,Grounds Maintenance Costs,Gm - Additional Works,30/09/2021,352765,3677,Personal Data - Data Protection Act 1998
Environmental & Regulatory,Regulatory Services,Housing and Environmental Health ,Supplies & Services,Grants and subscriptions,Capital Grants,23/09/2021,352476,4550,Liftability Ltd
Environmental & Regulatory,Waste management,Environmental,Employees,Indirect Employee Expenses,Agency Staff - Waged Posts,16/09/2021,351047,3046.94,24-7 Staffing
Environmental & Regulatory,Waste management,Environmental,Employees,Indirect Employee Expenses,Agency Staff - Waged Posts,16/09/2021,351047,838.77,24-7 Staffing
Planning & Development,Development Control,Planning & Building,Supplies & Services,Services,Legal Fees,02/09/2021,350396,3890,Cornerstone Barristers
Environmental & Regulatory,Waste & Recycling Management,Environmental,Employees,Indirect Employee Expenses,Agency Staff - Waged Posts,30/09/2021,351286,199.2,24-7 Staffing
Environmental & Regulatory,Waste management,Environmental,Employees,Indirect Employee Expenses,Agency Staff - Waged Posts,30/09/2021,351286,2794.86,24-7 Staffing
Environmental & Regulatory,Waste management,Environmental,Employees,Indirect Employee Expenses,Agency Staff - Waged Posts,30/09/2021,351286,945.67,24-7 Staffing
Cultural & Related,Recreation & Sport,Community and Leisure ,Premises related Expenditure,Repairs Alterations & Maintenance of Buildings,Estates premises costs - AMP,16/09/2021,351833,3958,Ams Contracting Ltd
Environmental & Regulatory,Regulatory Services,Housing and Environmental Health ,Employees,Indirect Employee Expenses,Temporary Staff,09/09/2021,351266,3967.42,Vivid Resourcing
Central Services to the Public,Management & Support Services,Legal & Democratic,Supplies & Services,Communications & Computing,Computer Software,30/09/2021,351670,3996.2,Iken Business Ltd
Planning & Development,Development Control,Planning & Building,Supplies & Services,Services,Legal Fees,02/09/2021,350397,4000,Cornerstone Barristers
Central Services to the Public,Management & Support Services,IT,Supplies & Services,Communications & Computing,Hardware Maintenance,30/09/2021,352322,4075,Internal System Ltd
Environmental & Regulatory,Street Cleansing (not chargeable to Highways),Environmental,Employees,Indirect Employee Expenses,Agency Staff - Waged Posts,09/09/2021,351044,483.22,24-7 Staffing
Environmental & Regulatory,Waste management,Environmental,Employees,Indirect Employee Expenses,Agency Staff - Waged Posts,09/09/2021,351044,2532.56,24-7 Staffing
Environmental & Regulatory,Waste management,Environmental,Employees,Indirect Employee Expenses,Agency Staff - Waged Posts,09/09/2021,351044,1070.92,24-7 Staffing
Planning & Development,Development Control,Planning & Building,Third Party Payments,Commuted Sum,s106 Developer contributions,09/09/2021,351370,5008.83,Braishfield Parish Council
Central Services to the Public,Management & Support Services,Legal & Democratic,Supplies & Services,Grants & Subscriptions,Subscriptions,09/09/2021,351098,4176,Thomson Reuters
"Highways, Roads & Transport",Highways and roads - maintenance,Plan Pol & Transport,Third Party Payments,Private contractors,Main Contractor Costs,23/09/2021,352155,4298.69,Openreach Bt
Planning & Development,Development Control,Planning & Building,Employees,Indirect Employee Expenses,Temporary Staff,23/09/2021,350834,5160.55,Wadey Trees
Environmental & Regulatory,Regulatory Services,Estates and Economic Development ,Third Party Payments,Private contractors,Main Contractor Costs,09/09/2021,349083,4400.05,Hp Contracts
Environmental & Regulatory,Regulatory Services,Housing and Environmental Health ,Supplies & Services,Grants and subscriptions,Capital Grants,16/09/2021,351924,5291.34,Lifestyle Solutions
Environmental & Regulatory,Waste & Recycling Management,Environmental,Employees,Indirect Employee Expenses,Agency Staff - Waged Posts,02/09/2021,350461,185.92,24-7 Staffing
Environmental & Regulatory,Street Cleansing (not chargeable to Highways),Environmental,Employees,Indirect Employee Expenses,Agency Staff - Waged Posts,02/09/2021,350461,199.2,24-7 Staffing
Environmental & Regulatory,Waste management,Environmental,Employees,Indirect Employee Expenses,Agency Staff - Waged Posts,02/09/2021,350461,2582.96,24-7 Staffing
Environmental & Regulatory,Waste management,Environmental,Employees,Indirect Employee Expenses,Agency Staff - Waged Posts,02/09/2021,350461,1456.95,24-7 Staffing
Environmental & Regulatory,Waste management,Environmental,Transport Related Expenditure,Direct Transport Costs,Tyres,02/09/2021,350473,4437.01,Tructyre Ats
Environmental & Regulatory,Waste & Recycling Management,Environmental,Employees,Indirect Employee Expenses,Agency Staff - Waged Posts,09/09/2021,350044,92.96,24-7 Staffing
Environmental & Regulatory,Street Cleansing (not chargeable to Highways),Environmental,Employees,Indirect Employee Expenses,Agency Staff - Waged Posts,09/09/2021,350044,491.36,24-7 Staffing
Environmental & Regulatory,Waste management,Environmental,Employees,Indirect Employee Expenses,Agency Staff - Waged Posts,09/09/2021,350044,3086.38,24-7 Staffing
Environmental & Regulatory,Waste management,Environmental,Employees,Indirect Employee Expenses,Agency Staff - Waged Posts,09/09/2021,350044,933.37,24-7 Staffing
Cultural & Related,Open Spaces,Environmental,Supplies & Services,"Equipment, Furniture & Materials",Purchase Equip + Materials,09/09/2021,340112,4627,T H White Ltd
Cultural & Related,Open Spaces,Community and Leisure ,Premises related Expenditure,Grounds Maintenance Costs,Gm - Additional Works,30/09/2021,351903,4671,Streetmaster (South Wales) Ltd
"Highways, Roads & Transport",Highways and roads - maintenance,Plan Pol & Transport,Premises related Expenditure,Repairs Alterations & Maintenance of Buildings,Highways Repairs,30/09/2021,352314,4674,Purbeck Civil Engineering Limited
Cultural & Related,Open Spaces,Community and Leisure ,Premises related Expenditure,Grounds Maintenance Costs,Snagging Works,23/09/2021,351835,4680,Going Environmental Ltd
Cultural & Related,Open Spaces,Community and Leisure ,Premises related Expenditure,Grounds Maintenance Costs,Non Contract Tree Works,23/09/2021,350025,970.82,Gristwood & Toms Ltd
Cultural & Related,Open Spaces,Community and Leisure ,Premises related Expenditure,Repairs Alterations & Maintenance of Buildings,Estates premises costs - AMP,23/09/2021,350025,3713.23,Gristwood & Toms Ltd
Environmental & Regulatory,Regulatory Services,Housing and Environmental Health ,Supplies & Services,Grants and subscriptions,Capital Grants,16/09/2021,351925,5721,Astor Bannerman (Medical) Ltd
Cultural & Related,Open Spaces,Environmental,Third Party Payments,Other Establishments,Private Contractors,30/09/2021,352642,4811,Ams Contracting Ltd
Central Services,Corporate & Democratic Core,Corporate & Democratic,Supplies & Services,Communications & Computing,Software Maintenance,30/09/2021,352796,5036.37,Ideagen Gael Ltd
Central Services to the Public,Management & Support Services,Premises & Asset Management,Premises related Expenditure,Repairs Alterations & Maintenance of Buildings,Building Maint - Non Estates,02/09/2021,350876,5080.99,Wessex Response
External Trading Accounts,Business Parks,Premises & Asset Management,Premises related Expenditure,Cleaning and domestic supplies,Contract Cleaning - Non Estates,30/09/2021,352874,215.02,Hi-Spec Facilities Services Plc
Central Services to the Public,Management & Support Services,Premises & Asset Management,Premises related Expenditure,Cleaning and domestic supplies,Contract Cleaning - Non Estates,30/09/2021,352874,224.66,Hi-Spec Facilities Services Plc
Environmental & Regulatory,Regulatory Services,Premises & Asset Management,Premises related Expenditure,Cleaning and domestic supplies,Contract Cleaning - Non Estates,30/09/2021,352874,2006.74,Hi-Spec Facilities Services Plc
Cultural & Related,Recreation & Sport,Community and Leisure ,Premises related Expenditure,Cleaning and domestic supplies,Contract Cleaning - Non Estates,30/09/2021,352874,281.06,Hi-Spec Facilities Services Plc
Cultural & Related,Recreation & Sport,Community and Leisure ,Premises related Expenditure,Cleaning and domestic supplies,Contract Cleaning - Non Estates,30/09/2021,352874,752.53,Hi-Spec Facilities Services Plc
Cultural & Related,Recreation & Sport,Community and Leisure ,Premises related Expenditure,Cleaning and domestic supplies,Contract Cleaning - Non Estates,30/09/2021,352874,456.75,Hi-Spec Facilities Services Plc
Cultural & Related,Recreation & Sport,Community and Leisure ,Premises related Expenditure,Cleaning and domestic supplies,Contract Cleaning - Non Estates,30/09/2021,352874,456.75,Hi-Spec Facilities Services Plc
Environmental & Regulatory,"Cemetery, Cremation and Mortuary Services",Community and Leisure ,Premises related Expenditure,Cleaning and domestic supplies,Contract Cleaning - Non Estates,30/09/2021,352874,35.83,Hi-Spec Facilities Services Plc
Cultural & Related,Open Spaces,Community and Leisure ,Premises related Expenditure,Cleaning and domestic supplies,Contract Cleaning - Non Estates,30/09/2021,352874,752.53,Hi-Spec Facilities Services Plc
"Highways, Roads & Transport",Parking Services,Plan Pol & Transport,Premises related Expenditure,Cleaning and domestic supplies,Contract Cleaning - Non Estates,30/09/2021,352874,35.83,Hi-Spec Facilities Services Plc
Central Services to the Public,Management & Support Services,IT,Supplies & Services,Communications & Computing,Software Maintenance,23/09/2021,350460,5679,Winchester City Council
"Highways, Roads & Transport",Parking Services,Plan Pol & Transport,Supplies & Services,Services,Professional Fees,16/09/2021,351649,1304.33,Park Now Limited
"Highways, Roads & Transport",Parking Services,Plan Pol & Transport,Transport Related Costs,Management Fee,Car Park charges,16/09/2021,351649,4514.13,Park Now Limited
External Trading Accounts,Business Parks,Premises & Asset Management,Supplies & Services,Communications & Computing,Computer Hardware,30/09/2021,347391,5907.25,Spear Electrical Limited
Cultural & Related,Open Spaces,Community and Leisure ,Premises related Expenditure,Repairs Alterations & Maintenance of Buildings,Estates premises costs - AMP,30/09/2021,351633,6120,Groundlord Ltd
Cultural & Related,Open Spaces,Community and Leisure ,Premises related Expenditure,Grounds Maintenance Costs,Gm - Additional Works,16/09/2021,351660,6315.42,Rocon Contractors Ltd
Cultural & Related,Culture & Heritage,Community and Leisure ,Third Party Payments,Private contractors,Main Contractor Costs,09/09/2021,350903,6578.76,Southern Electric Power Distribution Plc
Central Services,Corporate & Democratic Core,Corporate & Democratic,Supplies & Services,Services,Legal Fees,30/09/2021,351288,8275,Radcliffe Chambers
Environmental & Regulatory,Street Cleansing (not chargeable to Highways),Environmental,Supplies & Services,"Equipment, Furniture & Materials",Maintenance Equip + Materials,30/09/2021,351639,7566,Imperial Polythene Products Ltd
Cultural & Related,Open Spaces,Community and Leisure ,Supplies & Services,Communications & Computing,Software Maintenance,30/09/2021,349851,8503,R & A Information Systems Ltd
Planning & Development,Development Control,Planning & Building,Third Party Payments,Commuted Sum,s106 Developer contributions,02/09/2021,350888,10260,Nursling & Rownhams P C
Central Services to the Public,Management & Support Services,Environmental,Transport Related Expenditure,Direct Transport Costs,Diesel,09/09/2021,350921,8776.77,Wp Group Limited
Central Services to the Public,Local Land Charges,Legal & Democratic,Supplies & Services,Miscellaneous Expenses,Land Charges Fees,30/09/2021,352407,9553,Hampshire County Council
Cultural & Related,Recreation & Sport,Community and Leisure ,Premises related Expenditure,Repairs Alterations & Maintenance of Buildings,Estates premises costs - AMP,23/09/2021,352196,9556,Personal Data - Data Protection Act 1998
Central Services to the Public,Management & Support Services,Environmental,Transport Related Expenditure,Direct Transport Costs,Diesel,02/09/2021,350470,9562.13,Wp Group Limited
Central Services to the Public,Management & Support Services,Environmental,Transport Related Expenditure,Direct Transport Costs,Diesel,23/09/2021,351848,9608.4,Wp Group Limited
Central Services to the Public,Management & Support Services,Legal & Democratic,Supplies & Services,Grants & Subscriptions,Subscriptions,09/09/2021,351099,9879.31,Thomson Reuters
Environmental & Regulatory,Waste management,Environmental,Supplies & Services,"Equipment, Furniture & Materials",Purchase Equip + Materials,16/09/2021,349855,10200,Mgb Plastics Ltd
Environmental & Regulatory,Waste management,Environmental,Supplies & Services,"Equipment, Furniture & Materials",Purchase Equip + Materials,16/09/2021,350030,10410,Mgb Plastics Ltd
Environmental & Regulatory,Waste management,Environmental,Supplies & Services,"Equipment, Furniture & Materials",Purchase Equip + Materials,16/09/2021,350259,10410,Mgb Plastics Ltd
Central Services,Corporate & Democratic Core,Corporate & Democratic,Supplies & Services,Communications & Computing,Software Maintenance,16/09/2021,351810,10694.13,Civica Uk Ltd
Environmental & Regulatory,Regulatory Services,Housing and Environmental Health ,Supplies & Services,Grants and subscriptions,Capital Grants,16/09/2021,351911,12985.99,A & E Builders
Central Services to the Public,Local Land Charges,Legal & Democratic,Supplies & Services,Miscellaneous Expenses,Land Charges Fees,30/09/2021,352408,10865,Hampshire County Council
Cultural & Related,Culture & Heritage,Community and Leisure ,Third Party Payments,Private contractors,Main Contractor Costs,02/09/2021,350847,20000,Thrussells
Central Services to the Public,Management & Support Services,IT,Supplies & Services,Communications & Computing,Software Maintenance,09/09/2021,351103,17550,Getmapping Plc
Central Services to the Public,Management & Support Services,Estates and Economic Development ,Third Party Payments,Private contractors,Main Contractor Costs,09/09/2021,350915,17765.97,The Incuhive Space
Central Services to the Public,Management & Support Services,Estates and Economic Development ,Third Party Payments,Private contractors,Main Contractor Costs,09/09/2021,351108,19689.4,Cleveland Land Services (Guisborough) Ltd
"Highways, Roads & Transport",Parking Services,Plan Pol & Transport,Premises related Expenditure,Repairs Alterations & Maintenance of Buildings,Building Maint - Non Estates,09/09/2021,351083,21735,Axis Fire And Security Services Ltd
Cultural & Related,Culture & Heritage,Premises & Asset Management,Premises related Expenditure,Repairs Alterations & Maintenance of Buildings,Estates premises costs - AMP,02/09/2021,350389,34464.28,Stonewest Limited
Central Services to the Public,Management & Support Services,Finance,Supplies & Services,Services,Insurance ,09/09/2021,350781,42529.96,Legal & General Assurance Society Ltd
Cultural & Related,Culture & Heritage,Premises & Asset Management,Premises related Expenditure,Repairs Alterations & Maintenance of Buildings,Estates premises costs - AMP,30/09/2021,352670,39318.72,Stonewest Limited
Central Services to the Public,Local Tax Collection,Revenues,Supplies & Services,Communications & Computing,Software Maintenance,02/09/2021,350533,62743.18,Nec Software Solutions Uk Limited
External Trading Accounts,Business Parks,Premises & Asset Management,Premises related Expenditure,Miscellaneous Expenses,Service Charge,02/09/2021,350227,96634.05,Test Valley Borough Council
External Trading Accounts,Business Parks,Premises & Asset Management,Premises related Expenditure,Miscellaneous Expenses,Service Charge,09/09/2021,351042,99180.26,Test Valley Borough Council
Central Services to the Public,Local Land Charges,Legal & Democratic,Supplies & Services,Communications & Computing,Software Maintenance,30/09/2021,351900,2226.98,Idox Software Ltd
Central Services to the Public,Management & Support Services,IT,Supplies & Services,Communications & Computing,Software Maintenance,30/09/2021,351900,32039.63,Idox Software Ltd
Environmental & Regulatory,Community Development,Community and Leisure ,Supplies & Services,Communications & Computing,Software Maintenance,30/09/2021,351900,1367.98,Idox Software Ltd
Planning & Development,Development Control,Planning & Building,Supplies & Services,Communications & Computing,Software Maintenance,30/09/2021,351900,43163.73,Idox Software Ltd
Planning & Development,Building Control,Planning & Building,Supplies & Services,Communications & Computing,Software Maintenance,30/09/2021,351900,10367.89,Idox Software Ltd
External Trading Accounts,Property Investments,Estates and Economic Development ,Third Party Payments,Private contractors,Main Contractor Costs,02/09/2021,350793,129161.92,Kier Property Developments Ltd.
External Trading Accounts,Property Investments,Estates and Economic Development ,Third Party Payments,Private contractors,Main Contractor Costs,16/09/2021,351687,465196.06,Kier Property Developments Ltd.
